bitfinex/quotes_SOLUSD_20250902
["timestamp","ask_amount","ask_price","bid_price","bid_amount"]
[1756845975904,13.59559401,207.64,207.59,7.83129557]
[1756845976809,70.58216157,207.66,207.5,12.04819277]
[1756845976810,44.34,207.68,207.63,7.83129557]
[1756845977009,13.59559401,207.7,207.66,7.83129557]
[1756845977217,13.59559401,207.7,207.64,8.51129557]
[1756845977587,14.25559401,207.7,207.61,0.68]
[1756845977782,13.59559401,207.67,207.61,0.68]
[1756845977988,7.83129557,207.66,207.57,8.51129557]
[1756845978284,12.64691858,207.66,207.57,13.32883891]
[1756845978795,7.83129557,207.65,207.57,13.32883891]
[1756845979313,7.83129557,207.63,207.55,34.51129557]
[1756845979503,7.83129557,207.63,207.56,7.83129557]
[1756845979831,13.59559401,207.64,207.57,7.83129557]
[1756845979832,21.42688958,207.64,207.57,7.83129557]
[1756845980019,13.59559401,207.66,207.6,7.83129557]
[1756845980219,52.01129557,207.67,207.61,7.83129557]
[1756845980387,52.01129557,207.67,207.6,0.68]
[1756845980388,52.01129557,207.67,207.6,13.32821827]
[1756845980588,52.01129557,207.67,207.61,7.83129557]
[1756845980788,38.64647553,207.68,207.61,7.83129557]
[1756845981216,7.83129557,207.66,207.6,13.32821827]
[1756845981543,13.59559401,207.67,207.59,7.83129557]
[1756845981709,21.42688958,207.67,207.6,0.68]
[1756845981896,13.59559401,207.67,207.6,0.68]
[1756845982097,13.59559401,207.67,207.61,7.83129557]
[1756845982316,13.59559401,207.67,207.61,12.64791214]
[1756845982912,7.83129557,207.63,207.56,0.68]
[1756845983112,7.83129557,207.62,207.56,0.68]
[1756845983498,7.83129557,207.62,207.56,8.51129557]
[1756845983927,7.83129557,207.63,207.57,7.83129557]
[1756845984227,7.83129557,207.62,207.56,0.68]
[1756845984403,19.07172524,207.64,207.56,8.51129557]
[1756845984603,7.83129557,207.62,207.56,8.51129557]
[1756845985722,13.59559401,207.64,207.58,7.83129557]
[1756845985906,7.83129557,207.7,207.63,7.83129557]
[1756845986226,13.59559401,207.69,207.64,7.83129557]
[1756845986518,13.59559401,207.69,207.64,8.51129557]
[1756845987110,21.42688958,207.7,207.65,0.68]
[1756845987311,21.42688958,207.7,207.64,7.83129557]
[1756845987510,7.83129557,207.69,207.63,12.6475298]
[1756845988099,21.42688958,207.7,207.64,8.51129557]
[1756845988497,7.83129557,207.7,207.64,13.32718381]
[1756845988724,8.49129557,207.71,207.65,7.83129557]
[1756845988922,0.66,207.71,207.65,7.83129557]
[1756845989135,8.49129557,207.71,207.65,7.83129557]
[1756845989925,8.49129557,207.71,207.65,12.64703121]
[1756845990122,13.30581282,207.71,207.65,7.83129557]
[1756845990340,13.30581282,207.71,207.64,8.51129557]
[1756845990507,7.83129557,207.7,207.64,8.51129557]
[1756845990907,7.83129557,207.7,207.64,5.49594974]
[1756845991124,8.49129557,207.69,207.62,0.68]
[1756845991331,7.83129557,207.69,207.63,7.83129557]
[1756845991631,13.59559401,207.71,207.64,8.51129557]
[1756845991805,13.93991715,207.73,207.68,7.83129557]
[1756845991806,0.06,207.73,207.68,7.83129557]
[1756845992012,13.65559401,207.73,207.68,8.51129557]
[1756845992205,21.48688958,207.73,207.68,0.68]
[1756845992412,21.48688958,207.73,207.67,7.83129557]
[1756845992633,7.83129557,207.71,207.66,0.68]
[1756845993106,7.83129557,207.72,207.66,0.68]
[1756845993918,18.46958375,207.73,207.66,0.68]
[1756845993919,26.30087932,207.73,207.66,8.51129557]
[1756845994119,7.83129557,207.72,207.66,0.68]
[1756845994435,7.83129557,207.72,207.66,5.49546911]
[1756845994615,26.30087932,207.73,207.66,13.32676468]
[1756845994812,13.65559401,207.73,207.67,7.83129557]
[1756845995134,0.06,207.73,207.67,8.51129557]
[1756845995525,0.06,207.73,207.68,7.83129557]
[1756845995726,7.89129557,207.73,207.67,0.68]
[1756845995935,7.83129557,207.68,207.62,8.51129557]
[1756845996234,26.0,207.7,207.63,5.49625969]
[1756845996431,0.06,207.73,207.67,7.83129557]
[1756845996609,26.06,207.73,207.67,7.83129557]
[1756845997536,26.06,207.73,207.67,12.64655345]
[1756845997737,30.87400938,207.73,207.66,5.49554631]
[1756845998041,31.53400938,207.73,207.66,13.32684188]
[1756845998247,31.53400938,207.73,207.66,8.51129557]
[1756845998423,7.83129557,207.71,207.62,8.51129557]
[1756845998733,0.66,207.7,207.62,8.51129557]
[1756845998923,7.83129557,207.68,207.61,7.83129557]
[1756845999119,7.83129557,207.68,207.61,13.32798679]
[1756845999328,7.83129557,207.67,207.63,0.03]
[1756845999518,14.25559401,207.69,207.63,0.03]
[1756845999724,7.83129557,207.67,207.63,0.03]
[1756846000119,7.83129557,207.64,207.63,0.03]
[1756846000918,7.83129557,207.66,207.63,0.03]
[1756846001432,7.83129557,207.65,207.63,0.03]
[1756846002116,33.83129557,207.68,207.64,0.72]
[1756846002436,5.52481899,207.7,207.65,0.72]
[1756846002437,12.64596725,207.7,207.65,0.72]
[1756846003418,7.83129557,207.68,207.63,0.03]
[1756846003609,7.83129557,207.67,207.63,0.03]
[1756846003815,7.83129557,207.66,207.63,0.03]
[1756846004050,7.83129557,207.67,207.63,0.03]
[1756846005333,7.83129557,207.64,207.63,0.03]
[1756846006339,30.8158101,207.65,207.63,0.03]
[1756846006520,33.83129557,207.65,207.63,0.03]
[1756846007746,38.64716506,207.65,207.63,0.03]
[1756846007945,7.83129557,207.64,207.63,0.03]
[1756846009023,33.83129557,207.65,207.63,0.03]
[1756846009354,26.0,207.65,207.63,0.03]
[1756846009514,33.83129557,207.65,207.63,0.03]
[1756846009870,26.0,207.65,207.63,0.75]
[1756846010032,13.59559401,207.69,207.63,0.75]
[1756846010238,7.83129557,207.68,207.63,0.75]
[1756846010530,13.59559401,207.69,207.63,0.75]
[1756846010531,7.83129557,207.66,207.63,0.75]
[1756846012063,7.83129557,207.65,207.63,0.75]
[1756846012354,18.41055003,207.69,207.63,0.75]
[1756846012858,7.83129557,207.67,207.63,5.56619948]
[1756846013059,13.59559401,207.69,207.64,0.72]
[1756846013234,7.83129557,207.69,207.65,0.72]
[1756846013553,12.61687744,207.68,207.65,0.72]
[1756846013757,12.61687744,207.68,207.63,12.64687744]
[1756846014056,12.61687744,207.68,207.64,0.72]
[1756846014442,12.61687744,207.67,207.64,0.72]
[1756846014643,31.52470674,207.7,207.63,0.03]
[1756846014644,12.61687744,207.65,207.63,0.03]
[1756846014845,12.61687744,207.64,207.63,0.03]
[1756846015352,18.14290518,207.64,207.63,0.03]
[1756846015650,17.43290518,207.64,207.63,0.03]
[1756846016243,18.14290518,207.64,207.63,0.03]
[1756846016831,17.43290518,207.64,207.63,0.03]
[1756846018326,0.71,207.66,207.63,0.03]
[1756846018327,26.21247145,207.65,207.63,0.03]
[1756846018748,12.61687744,207.66,207.63,0.03]
[1756846019055,0.06,207.65,207.63,0.03]
[1756846020551,0.06,207.65,207.64,0.72]
[1756846021255,0.06,207.65,207.64,13.33687744]
[1756846021454,0.06,207.65,207.64,0.72]
[1756846023942,0.06,207.65,207.63,0.03]
[1756846024146,12.61687744,207.64,207.63,0.03]
[1756846024359,13.32687744,207.64,207.63,0.03]
[1756846025061,0.06,207.73,207.67,0.42648471]
[1756846025242,0.06,207.73,207.69,12.61687744]
[1756846025556,12.61687744,207.71,207.64,12.61687744]
[1756846025759,12.61687744,207.71,207.63,34.80239361]
[1756846025953,13.32687744,207.7,207.63,0.03]
[1756846026134,12.61687744,207.69,207.63,0.03]
[1756846026331,12.61687744,207.68,207.63,0.03]
[1756846026542,13.32687744,207.68,207.63,0.03]
[1756846026755,0.71,207.7,207.65,12.61687744]
[1756846027262,0.71,207.69,207.65,12.61687744]
[1756846027459,0.71,207.68,207.64,12.61687744]
[1756846028054,12.61687744,207.71,207.63,0.03]
[1756846028055,12.61687744,207.69,207.63,0.03]
[1756846028366,0.71,207.67,207.63,0.03]
[1756846028663,0.71,207.66,207.63,0.03]
[1756846028849,12.61687744,207.64,207.63,0.03]
[1756846029371,13.32687744,207.64,207.63,0.03]
[1756846029578,0.71,207.64,207.63,0.03]
[1756846029742,13.32687744,207.64,207.63,0.03]
[1756846031745,31.73849919,207.64,207.63,0.03]
[1756846032442,32.1649839,207.64,207.6,0.03]
[1756846032645,26.21247145,207.61,207.6,0.03]
[1756846032844,26.49679459,207.61,207.6,0.03]
[1756846033075,27.19679459,207.61,207.6,0.03]
[1756846033249,27.33895616,207.61,207.6,0.03]
[1756846033868,32.15567982,207.61,207.6,0.03]
[1756846035259,74.01567982,207.61,207.6,0.03]
[1756846035461,32.15567982,207.61,207.6,0.03]
[1756846035663,73.97567982,207.61,207.6,0.03]
[1756846037966,32.15567982,207.61,207.6,0.03]
[1756846038171,13.59559401,207.62,207.6,0.03]
[1756846038486,0.06,207.65,207.61,12.61687744]
[1756846039174,0.06,207.65,207.61,17.43353329]
[1756846039385,0.06,207.65,207.61,4.81665585]
[1756846039610,0.06,207.65,207.62,12.61687744]
[1756846041192,0.06,207.65,207.62,17.43330217]
[1756846042496,0.06,207.65,207.64,12.61687744]
[1756846042877,0.06,207.65,207.64,12.65687744]
[1756846043996,0.06,207.65,207.64,12.61687744]
[1756846045099,0.06,207.65,207.64,17.43290518]
[1756846045304,0.06,207.65,207.64,17.47290518]
[1756846045599,1e-08,207.65,207.64,43.61506675]
[1756846045808,1e-08,207.65,207.64,17.61506675]
[1756846046711,1e-08,207.65,207.64,43.89938989]
[1756846046920,0.06,207.73,207.68,4.95726172]
[1756846047118,0.06,207.73,207.72,12.61687744]
[1756846047608,0.02,207.73,207.72,12.61687744]
[1756846049014,0.02,207.73,207.72,17.43105036]
[1756846049215,0.02,207.73,207.72,58.73105036]
[1756846051726,0.02,207.73,207.72,46.11417292]
[1756846051933,0.02,207.73,207.72,58.73105036]
[1756846053788,0.02,207.73,207.72,4.81417292]
[1756846053992,0.02,207.73,207.72,58.57105036]
[1756846054192,0.02,207.73,207.7,26.0]
[1756846054193,0.72,207.73,207.7,12.61687744]
[1756846054419,0.7,207.72,207.7,41.16]
[1756846054598,0.7,207.71,207.69,4.81486831]
[1756846054800,0.7,207.7,207.69,4.81486831]
[1756846055103,0.7,207.7,207.68,17.43194514]
[1756846055516,0.02,207.73,207.68,17.43194514]
[1756846055822,0.02,207.73,207.72,17.43105036]
[1756846056189,0.02,207.73,207.72,4.81417292]
[1756846056394,0.72,207.73,207.72,4.81417292]
[1756846058616,0.72,207.73,207.71,12.61687744]
[1756846058795,0.02,207.73,207.72,12.61687744]
[1756846058996,0.02,207.73,207.71,4.81428769]
[1756846059195,0.02,207.73,207.72,12.61687744]
[1756846059597,0.02,207.73,207.7,53.65687744]
[1756846059598,0.72,207.73,207.7,53.65687744]
[1756846059817,0.72,207.73,207.7,45.85463286]
[1756846060029,0.72,207.73,207.7,58.4715103]
[1756846060208,0.02,207.73,207.71,12.61687744]
[1756846060524,0.02,207.73,207.72,12.61687744]
[1756846061324,0.02,207.73,207.71,12.61687744]
[1756846061839,0.02,207.73,207.67,4.81533201]
[1756846062135,0.69,207.72,207.7,53.61687744]
[1756846062329,0.69,207.71,207.69,40.96]
[1756846062623,0.69,207.71,207.67,4.81533201]
[1756846062624,0.69,207.7,207.67,17.43220945]
[1756846062838,0.69,207.69,207.67,58.37220945]
[1756846063140,0.69,207.69,207.66,17.43243772]
[1756846063431,4.83403975,207.73,207.66,17.43243772]
[1756846063432,0.69,207.68,207.66,58.37243772]
[1756846064515,0.69,207.71,207.67,12.61687744]
[1756846064714,0.69,207.71,207.66,45.75556028]
[1756846064715,0.02,207.73,207.69,12.61687744]
[1756846064900,0.02,207.73,207.7,12.61687744]
[1756846065102,0.02,207.73,207.72,12.61687744]
[1756846066507,0.02,207.73,207.72,4.81417292]
[1756846066703,0.71,207.73,207.72,4.81417292]
[1756846066901,0.02,207.73,207.72,4.81417292]
[1756846067124,0.71,207.73,207.71,17.43123517]
[1756846067636,0.02,207.73,207.71,17.43123517]
[1756846067930,0.71,207.73,207.71,17.43123517]
[1756846068120,0.69,207.72,207.7,45.59460984]
[1756846068302,0.02,207.73,207.71,12.61687744]
[1756846068620,0.02,207.73,207.72,17.43105036]
[1756846070634,0.71,207.73,207.72,4.81417292]
[1756846070922,0.71,207.73,207.71,17.43122781]
[1756846071131,0.69,207.72,207.7,58.13149822]
[1756846071508,0.02,207.73,207.7,58.13149822]
[1756846071921,0.71,207.73,207.7,58.13149822]
[1756846072127,0.02,207.73,207.72,12.61687744]
[1756846072826,0.02,207.73,207.72,17.43105036]
[1756846073530,0.71,207.73,207.72,7.79774055]
[1756846073733,0.71,207.73,207.71,4.81434695]
[1756846073734,0.71,207.73,207.71,12.6120875]
[1756846073918,0.02,207.73,207.71,4.81434695]
[1756846074114,0.02,207.73,207.72,7.79774055]
[1756846074314,0.02,207.73,207.72,48.37774055]
[1756846074949,0.02,207.73,207.72,53.19191347]
[1756846075442,0.02,207.73,207.72,45.39417292]
[1756846075605,0.02,207.73,207.72,53.17191347]
[1756846077435,0.71,207.73,207.72,40.5]
[1756846077624,0.02,207.73,207.72,48.29774055]
[1756846078306,0.02,207.73,207.72,40.5]
[1756846080309,0.02,207.73,207.72,43.61904202]
[1756846080539,0.02,207.73,207.72,40.5]
[1756846081633,0.02,207.73,207.72,40.4]
[1756846081634,0.71,207.73,207.72,40.4]
[1756846082020,0.02,207.73,207.72,40.4]
[1756846082853,0.02,207.73,207.72,40.3]
[1756846085620,0.02,207.73,207.7,3.14904202]
[1756846085844,0.69,207.72,207.71,40.28]
[1756846086048,0.02,207.73,207.71,40.28]
[1756846086256,0.69,207.72,207.71,40.26]
[1756846086453,0.69,207.72,207.71,40.24]
[1756846089432,0.02,207.73,207.71,40.24]
[1756846089976,0.71,207.73,207.71,40.24]
[1756846091021,0.02,207.73,207.72,3.11904202]
[1756846091463,0.02,207.73,207.72,40.12]
[1756846091829,0.02,207.73,207.7,3.14904202]
[1756846092034,0.02,207.73,207.72,40.1]
[1756846094225,0.68,207.73,207.71,40.07]
[1756846094430,0.66,207.72,207.71,0.03]
[1756846094734,0.66,207.72,207.71,40.05]
[1756846095266,0.02,207.73,207.71,40.05]
[1756846095865,0.68,207.73,207.71,40.05]
[1756846096667,0.68,207.73,207.71,40.03]
[1756846098654,0.02,207.73,207.71,40.03]
[1756846099044,0.02,207.73,207.72,3.11904202]
[1756846099441,0.02,207.73,207.71,43.14904202]
[1756846100134,0.02,207.73,207.71,0.03]
[1756846100469,0.66,207.72,207.71,40.03]
[1756846100653,0.66,207.72,207.71,0.03]
[1756846100839,3.77904202,207.72,207.71,0.03]
[1756846102661,8.59321494,207.72,207.71,0.03]
[1756846103246,13.59559401,207.71,207.7,0.03]
[1756846103447,29.47512725,207.71,207.7,0.03]
[1756846103645,32.06548944,207.71,207.7,0.03]
[1756846104044,19.58932136,207.71,207.7,0.03]
[1756846104636,13.59559401,207.69,207.68,0.00180244]
[1756846104831,16.71463603,207.69,207.68,0.00180244]
[1756846105164,17.37463603,207.69,207.68,0.00180244]
[1756846108866,0.66,207.69,207.68,0.00180244]
[1756846109072,3.11904202,207.71,207.68,0.00180244]
[1756846109575,0.02,207.73,207.69,3.15904202]
[1756846110167,0.02,207.73,207.69,3.11904202]
[1756846110567,0.02,207.73,207.7,3.11904202]
[1756846111362,0.02,207.73,207.69,3.11904202]
[1756846111569,0.02,207.73,207.69,43.11904202]
[1756846112368,0.02,207.73,207.68,43.12084446]
[1756846112966,0.02,207.73,207.68,40.00180244]
[1756846113173,0.66,207.72,207.68,40.00180244]
[1756846113386,3.77904202,207.72,207.68,0.00180244]
[1756846113582,3.11904202,207.7,207.68,0.00180244]
[1756846113885,0.66,207.69,207.68,0.00180244]
[1756846115778,3.11904202,207.71,207.68,0.00180244]
[1756846115981,3.77904202,207.71,207.68,0.00180244]
[1756846116179,0.66,207.7,207.68,0.00180244]
[1756846116378,3.11904202,207.72,207.68,0.00180244]
[1756846116582,3.13904202,207.73,207.68,0.00180244]
[1756846116780,0.02,207.73,207.69,3.11904202]
[1756846117564,0.02,207.73,207.71,3.11904202]
[1756846117868,0.02,207.73,207.72,3.11904202]
[1756846118385,0.02,207.73,207.72,3.15904202]
[1756846120263,0.02,207.73,207.72,0.04]
[1756846120469,0.02,207.73,207.72,43.15904202]
[1756846120663,0.02,207.73,207.72,43.09904202]
[1756846120874,0.02,207.73,207.72,39.98]
[1756846121074,0.02,207.73,207.72,3.11904202]
[1756846121385,0.02,207.73,207.72,43.09904202]
[1756846122374,0.02,207.73,207.7,26.0]
[1756846122576,0.02,207.73,207.7,3.11904202]
[1756846122765,0.02,207.73,207.7,43.09904202]
[1756846123179,0.02,207.73,207.71,3.11904202]
[1756846123576,0.02,207.73,207.71,43.09904202]
[1756846123875,0.02,207.73,207.71,39.98]
[1756846124078,0.02,207.73,207.71,43.09904202]
[1756846124283,0.02,207.73,207.71,39.98]
[1756846124593,0.02,207.73,207.72,4.81417292]
[1756846124969,0.72,207.73,207.7,39.98]
[1756846125369,0.7,207.72,207.69,39.98]
[1756846125680,3.81904202,207.71,207.69,39.98]
[1756846126067,0.7,207.7,207.69,39.98]
[1756846126489,0.7,207.7,207.68,0.00180244]
[1756846126991,0.72,207.73,207.68,0.00180244]
[1756846127292,3.83904202,207.73,207.68,0.00180244]
[1756846127592,3.81904202,207.72,207.68,0.00180244]
[1756846128081,0.7,207.71,207.68,0.00180244]
[1756846129103,0.02,207.73,207.7,3.11904202]
[1756846129298,0.02,207.73,207.72,3.11904202]
[1756846129792,0.02,207.73,207.71,39.96]
[1756846130090,0.02,207.73,207.7,3.11904202]
[1756846130397,0.02,207.73,207.71,39.96]
[1756846130771,0.02,207.73,207.71,44.77422381]
[1756846131395,0.72,207.73,207.71,44.77422381]
[1756846132996,0.02,207.73,207.71,44.77422381]
[1756846133503,0.02,207.73,207.72,39.96]
[1756846133694,0.02,207.73,207.72,44.77417292]
[1756846134493,3.83904202,207.73,207.7,39.96]
[1756846134693,0.7,207.72,207.68,0.00180244]
[1756846134997,0.7,207.72,207.69,39.96]
[1756846135200,0.7,207.71,207.69,39.96]
[1756846135780,0.7,207.7,207.69,39.96]
[1756846136006,0.7,207.7,207.68,0.00180244]
[1756846136177,5.57547098,207.69,207.68,0.00180244]
[1756846136581,0.7,207.69,207.68,0.00180244]
[1756846136817,0.02,207.73,207.68,4.87727342]
[1756846137005,0.02,207.73,207.7,4.87547098]
[1756846137177,0.02,207.73,207.71,44.81547098]
[1756846137878,0.02,207.73,207.71,44.75424582]
[1756846138801,0.02,207.73,207.71,4.81424582]
[1756846139018,0.72,207.73,207.71,39.94]
[1756846139613,0.02,207.73,207.71,39.94]
[1756846139818,0.02,207.73,207.71,49.62978435]
[1756846140300,0.02,207.73,207.72,4.87547098]
[1756846142809,0.02,207.73,207.72,9.6896439]
[1756846142998,0.02,207.73,207.72,4.81417292]
[1756846143810,0.02,207.73,207.72,9.6896439]
[1756846144711,0.02,207.73,207.72,4.81417292]
[1756846145027,0.02,207.73,207.72,9.6896439]
[1756846149201,0.02,207.73,207.72,10.35322276]
[1756846149516,0.02,207.73,207.72,90.3375459]
[1756846151209,1e-08,207.76,207.75,30.81347773]
[1756846151412,1e-08,207.76,207.75,76.01543342]
[1756846151616,1e-08,207.76,207.75,76.05543342]
[1756846152123,1e-08,207.76,207.75,169.8323752]
[1756846152422,1e-08,207.76,207.75,173.34863314]
[1756846152730,1e-08,207.78,207.77,0.14216157]
[1756846153025,1e-08,207.78,207.77,71.24195569]
[1756846153223,1e-08,207.78,207.77,76.05497008]
[1756846153612,1e-08,207.78,207.77,76.01497008]
[1756846153816,1e-08,207.78,207.77,76.05497008]
[1756846154522,1e-08,207.78,207.77,36.15497008]
[1756846154726,1e-08,207.78,207.77,76.03497008]
[1756846154927,1e-08,207.78,207.77,75.99497008]
[1756846155304,1e-08,207.78,207.77,36.11497008]
[1756846155503,1e-08,207.78,207.77,30.81301439]
[1756846155705,0.67000001,207.78,207.77,4.81301439]
[1756846155917,0.67000001,207.78,207.77,44.69301439]
[1756846156207,1e-08,207.78,207.77,49.56848537]
[1756846156928,1e-08,207.78,207.77,9.68848537]
[1756846157327,1e-08,207.78,207.77,49.56848537]
[1756846158632,1e-08,207.78,207.77,4.81301439]
[1756846158835,1e-08,207.78,207.77,49.56848537]
[1756846159138,1e-08,207.78,207.77,44.67301439]
[1756846159320,1e-08,207.78,207.77,49.54848537]
[1756846161505,1e-08,207.78,207.77,50.45627151]
[1756846161722,1e-08,207.78,207.77,90.05186552]
[1756846161907,1e-08,207.78,207.77,91.98018041]
[1756846162633,1e-08,207.78,207.77,171.68018041]
[1756846162932,1e-08,207.78,207.77,171.19887898]
[1756846164328,1e-08,207.78,207.77,171.23887898]
[1756846164929,1e-08,207.78,207.77,169.31056409]
[1756846165236,1e-08,207.83,207.82,0.42648471]
[1756846165442,1e-08,207.83,207.82,130.13499774]
[1756846165602,1e-08,207.83,207.82,129.6538121]
[1756846167010,1e-08,207.83,207.82,143.24940611]
[1756846167527,1e-08,207.83,207.82,129.36948896]
[1756846167528,0.67000001,207.83,207.82,129.36948896]
[1756846169407,1e-08,207.83,207.82,129.36948896]
[1756846170333,0.67000001,207.83,207.82,129.34948896]
[1756846170630,0.67000001,207.83,207.82,89.38732739]
[1756846170830,0.67000001,207.83,207.82,124.33185641]
[1756846171035,0.67000001,207.83,207.82,129.20732739]
[1756846175925,1e-08,207.83,207.82,44.67547098]
[1756846176132,1e-08,207.83,207.82,70.81763255]
[1756846176308,1e-08,207.83,207.82,85.17873534]
[1756846177204,1e-08,207.83,207.82,85.21873534]
[1756846177610,1e-08,207.83,207.82,138.91873534]
[1756846177827,1e-08,207.83,207.82,143.24940611]
[1756846178210,1e-08,207.86,207.85,31.30195569]
[1756846178409,1e-08,207.86,207.85,85.15866588]
[1756846179025,1e-08,207.86,207.85,31.78307187]
[1756846179328,1e-08,207.86,207.85,39.78]
[1756846179329,0.67000001,207.86,207.85,39.78]
[1756846179530,0.67000001,207.86,207.85,44.65547098]
[1756846179724,1e-08,207.86,207.85,44.65547098]
[1756846180058,1e-08,207.86,207.85,63.96982777]
[1756846180435,0.67000001,207.86,207.85,30.95332346]
[1756846180622,0.67000001,207.86,207.85,75.58879444]
[1756846182418,1e-08,207.86,207.85,75.58879444]
[1756846182814,0.66000001,207.86,207.83,79.7]
[1756846183015,1e-08,207.86,207.84,44.57138229]
[1756846183216,0.66,207.85,207.84,49.44685327]
[1756846184034,1e-08,207.86,207.84,49.44685327]
[1756846184219,0.66000001,207.86,207.85,4.87547098]
[1756846184420,1e-08,207.86,207.85,4.87547098]
[1756846184828,1e-08,207.86,207.85,39.76]
[1756846185017,0.66000001,207.86,207.85,39.76]
[1756846186142,0.66000001,207.86,207.85,44.57116189]
[1756846187514,0.66000001,207.86,207.85,39.76]
[1756846188043,5.53547099,207.86,207.82,0.03]
[1756846188220,4.87547098,207.83,207.82,0.03]
[1756846188828,5.53547098,207.83,207.82,0.03]
[1756846191243,0.66,207.83,207.82,0.03]
[1756846192022,5.53547098,207.83,207.82,0.03]
[1756846193643,1e-08,207.86,207.82,4.90547098]
[1756846193838,1e-08,207.86,207.85,4.87547098]
[1756846194033,1e-08,207.86,207.85,44.59547098]
[1756846194530,1e-08,207.86,207.85,49.40663287]
[1756846196748,1e-08,207.86,207.85,49.43663287]
[1756846197448,1e-08,207.86,207.85,47.6755038]
[1756846201654,1e-08,207.86,207.85,7.9555038]
[1756846201827,0.66000001,207.86,207.85,47.6355038]
[1756846202647,0.66000001,207.86,207.85,0.03]
[1756846202852,0.66000001,207.86,207.85,39.69]
[1756846204451,1e-08,207.86,207.85,47.6155038]
[1756846205252,0.66000001,207.86,207.85,4.84116189]
[1756846205434,0.66000001,207.86,207.85,44.50116189]
[1756846205631,1e-08,207.86,207.85,47.6155038]
[1756846206040,0.66000001,207.86,207.85,39.69]
[1756846206353,1e-08,207.86,207.85,47.6155038]
[1756846207452,1e-08,207.86,207.85,127.3155038]
[1756846207636,1e-08,207.86,207.85,127.45766537]
[1756846208363,1e-08,207.86,207.85,124.34332346]
[1756846208543,1e-08,207.86,207.85,127.45766537]
[1756846209156,1e-08,207.86,207.85,87.6555038]
[1756846209360,0.66000001,207.86,207.85,124.18116189]
[1756846210153,0.66000001,207.86,207.85,39.67]
[1756846210362,0.66000001,207.86,207.85,44.48116189]
[1756846213039,0.66000001,207.86,207.85,39.67]
[1756846213561,0.66000001,207.86,207.85,44.48116189]
[1756846214637,0.66000001,207.86,207.85,47.5955038]
[1756846215561,0.66000001,207.86,207.85,39.67]
[1756846215776,0.66000001,207.86,207.85,44.48116189]
[1756846216341,0.66000001,207.86,207.85,47.5955038]
[1756846217539,0.66000001,207.86,207.85,44.48116189]
[1756846219538,1e-08,207.86,207.85,44.48116189]
[1756846219771,1e-08,207.86,207.85,47.5955038]
[1756846221446,1e-08,207.86,207.85,61.33325938]
[1756846221845,1e-08,207.86,207.85,141.03325938]
[1756846222472,1e-08,207.86,207.85,142.96101667]
[1756846223967,1e-08,207.86,207.85,139.84667476]
[1756846224146,1e-08,207.86,207.85,141.03325938]
[1756846224346,1e-08,207.86,207.85,142.96101668]
[1756846228175,1e-08,207.86,207.85,86.46891919]
[1756846228379,0.69000001,207.86,207.85,84.54116189]
[1756846228549,0.69000001,207.86,207.85,124.08116189]
[1756846228965,0.69000001,207.86,207.85,44.38116189]
[1756846230282,1e-08,207.86,207.85,47.4955038]
[1756846230485,1e-08,207.86,207.85,61.23325938]
[1756846230663,1e-08,207.86,207.85,63.16101667]
[1756846231681,0.69000001,207.86,207.85,61.23325938]
[1756846231870,0.69000001,207.86,207.85,21.69325938]
[1756846232069,0.69000001,207.86,207.85,61.21325938]
[1756846232278,1e-08,207.86,207.85,61.21325938]
[1756846232980,1e-08,207.86,207.85,63.14101667]
[1756846233168,1e-08,207.86,207.85,61.21325938]
[1756846233374,1e-08,207.86,207.85,63.14101667]
[1756846233678,1e-08,207.86,207.85,142.84101667]
[1756846234358,0.69000001,207.86,207.85,127.1755038]
[1756846235974,0.69000001,207.86,207.85,84.54116189]
[1756846236153,0.69000001,207.86,207.85,124.04116189]
[1756846238996,0.69000001,207.86,207.85,4.84116189]
[1756846239162,0.69000001,207.86,207.85,0.03]